[Event "85th Tata Steel Masters 2023"]
[Site "Wijk aan Zee"]
[Date "2023.01.14"]
[Round "1.7"]
[White "Maghsoodloo, Parham"]
[Black "Keymer, Vincent"]
[Result "1/2-1/2"]
[ECO "A13"]
[WhiteElo "2719"]
[BlackElo "2696"]
[Annotator "TA"]
[PlyCount "65"]
[EventDate "2023.01.10"]
[EventType "tourn"]
[EventCountry "NED"]
[SourceTitle "playchess.com"]
[Source "ChessBase"]
[SourceQuality "1"]
[TimeControl "40/6000+30:30/3000+30:900+30"]

{[%evp 14,65,15,21,39,3,0,-30,-16,-16,-6,-12,-27,-18,-27,-33,-11,-58,-35,-36,-40,-72,-75,-97,-62,-56,-69,-95,-95,-94,-95,-79,-95,-82,-72,-92,-84,-80,0,0,0,0,0,0,0,0,0,0,0,0,0,0,0,0]} 1. Nf3 {[%emt 0:00:03]} d5 {[%emt 0:00:05]} 2. g3 {[%emt 0:00:14]} Nf6 {[%emt 0:00:35]} 3. Bg2 {[%emt 0:00:18]} c5 {[%emt 0:00:06]} 4. c4 {[%emt 0:01:17]} d4 {[%emt 0:00:48]} 5. e3 {[%emt 0:00:41]} Nc6 {[%emt 0:03:00]} 6. exd4 {[%emt 0:00:07]} cxd4 {[%emt 0:01:07]} 7. d3 {[%emt 0:01:30]} e6 {[%emt 0:05:01]} 8. O-O {[%emt 0:00:28]} h6 {[%emt 0:00:06] A13: English Opening: 1...e6.} 9. Re1 {[%emt 0:09:04]} Bd6 {[%emt 0:00:37]} 10. Na3 {[%emt 0:02:55]} O-O {[%emt 0:00:22] Black has an edge.} 11. Nc2 {[%emt 0:03:58]} a5 {[%emt 0:00:45]} 12. a3 {[%emt 0:17:04]} (12. Nfxd4 $5 Nxd4 13. Nxd4 $11) 12... e5 {[%emt 0:03:31]} 13. Rb1 {[%emt 0:00:15]} a4 {[%emt 0:12:10]} 14. Nb4 {[%emt 0:04:53]} Re8 {[%emt 0:00:38]} 15. c5 {[%emt 0:07:21]} Bc7 $15 {[%emt 0:03:43]} ({But not} 15... Bxc5 16. Nxc6 bxc6 17. Nxe5 $16 (17. Rxe5 Bb6 $11)) 16. Nd2 {[%emt 0:01:46]} Bg4 {[%emt 0:08:13] [#]} 17. Bf3 $146 {[%emt 0:03:43]} ({Predecessor:} 17. Qc2 Qd7 18. Nc4 Bh3 19. Bh1 Qf5 20. Nxc6 bxc6 21. Bxc6 e4 22. Bf4 Bxf4 23. dxe4 Qxc5 24. Bxa8 Rxa8 25. gxf4 {½-½ Savchenko,B (2550)-Iljiushenok,I (2567) RUS-ch Blitz 2022 (10)}) 17... Bxf3 {[%emt 0:05:48]} 18. Qxf3 {[%emt 0:01:13]} Ra5 {[%emt 0:21:06][%cal Ba8a5,Ba5c5,Bc5c3][%mdl 32]} 19. Nxc6 {[%emt 0:06:29]} bxc6 {[%emt 0:00:08]} 20. Qxc6 {[%emt 0:08:56]} Re6 {[%emt 0:00:23][%mdl 64] [#] Deflection} 21. Qf3 {[%emt 0:00:08]} Rxc5 {[%emt 0:00:06]} 22. b4 {[%emt 0:00:11]} axb3 {[%emt 0:02:05]} 23. Nxb3 {[%emt 0:00:24]} Rc3 {[%emt 0:06:20][%cal Oe5e4] ...e4! is the strong threat.} 24. Bd2 {[%emt 0:00:10] [#]} e4 $1 {[%emt 0:00:13]} 25. Qd1 {[%emt 0:00:09]} exd3 {[%emt 0:06:21]} (25... Rcc6 $17 {Strongly threatening ...e3.} 26. dxe4 Nxe4) 26. Rxe6 $11 {[%emt 0:01:33] The position is equal.} fxe6 {[%emt 0:00:04]} 27. Nxd4 $1 {[%emt 0:00:16]} Qxd4 {[%emt 0:05:56]} 28. Bxc3 {[%emt 0:00:15]} Qxc3 {[%emt 0:00:04]} 29. Rb3 $1 {[%emt 0:01:27]} Qc6 {[%emt 0:07:25]} 30. Qxd3 {[%emt 0:00:57]} Ne4 {[%emt 0:01:18]} 31. Qe2 {[%emt 0:08:52]} Bd6 {[%emt 0:11:31]} 32. Re3 {[%emt 0:04:02]} Nxf2 {[%emt 0:00:58]} 33. Kxf2 {[%emt 0:00:28] Weighted Error Value: White=0.05 (flawless) /Black=0.07 (flawless)} 1/2-1/2

[Event "85th Tata Steel Masters 2023"]
[Site "Wijk aan Zee"]
[Date "2023.01.16"]
[Round "3.1"]
[White "Carlsen, Magnus"]
[Black "Ding, Liren"]
[Result "1/2-1/2"]
[ECO "D02"]
[WhiteElo "2859"]
[BlackElo "2811"]
[Annotator "TA"]
[PlyCount "73"]
[EventDate "2023.01.10"]
[EventType "tourn"]
[EventCountry "NED"]
[SourceTitle "playchess.com"]
[Source "ChessBase"]
[SourceQuality "1"]
[TimeControl "40/6000+30:30/3000+30:900+30"]

{[%evp 9,73,5,18,16,17,6,10,12,9,16,14,0,0,0,0,9,13,10,21,10,9,12,13,8,18,13,14,13,12,10,14,11,16,8,13,15,15,0,0,0,0,0,0,0,0,0,0,0,0,0,0,0,0,0,0,0,0,0,0,0,0,0,0,0,0,0]} 1. d4 {[%emt 0:00:33]} Nf6 {[%emt 0:00:14]} 2. Nf3 {[%emt 0:00:09]} d5 {[%emt 0:00:08]} 3. Bf4 {[%emt 0:00:06]} c5 {[%emt 0:01:57]} 4. e3 {[%emt 0:00:20]} e6 {[%emt 0:02:15]} 5. c3 {[%emt 0:13:37]} Bd6 {[%emt 0:02:54] The position is equal.} 6. Bb5+ {[%emt 0:00:14] D02: 1 d4 d5 2 Nf3 sidelines, including 2...Nf6 3 g3 and 2...Nf6 3 Bf4.} (6. Nbd2 cxd4 7. Bxd6 dxe3 8. Ba3 exd2+ 9. Qxd2 Nc6 10. Qg5 Rg8 11. Bd3 h6 12. Qe3 Qb6 13. Qe2 Bd7 14. O-O O-O-O 15. b4 Kb8 16. b5 Na5 17. Ne5 Be8 18. Bb4 {1-0 Carlsen,M (2863)-Ding,L (2791) Carlsen Tour Final rapid 2020 (1.12)}) 6... Nc6 {[%emt 0:00:12]} 7. Bxc6+ {[%emt 0:00:08]} bxc6 {[%emt 0:00:03]} 8. Bxd6 {[%emt 0:00:17]} Qxd6 {[%emt 0:00:04]} 9. Qa4 {[%emt 0:00:19]} O-O {[%emt 0:05:21]} 10. O-O {[%emt 0:01:46]} cxd4 {[%emt 0:08:41]} 11. cxd4 {[%emt 0:00:02]} c5 {[%emt 0:00:04] [#]} 12. Rc1 $146 {[%emt 0:07:51]} ({Predecessor:} 12. Qa3 Ne4 13. Rc1 cxd4 14. Qxd6 Nxd6 15. Nxd4 Bd7 16. Nd2 Rfc8 17. f4 Kf8 18. Kf2 {½-½ Kamsky,G (2674)-Oleksienko,M (2585) Titled Tuesday intern op 14th April blitz 2020 (4)}) 12... c4 {[%emt 0:09:44]} 13. b3 {[%emt 0:02:36]} Bd7 {[%emt 0:01:07]} 14. Qa5 {[%emt 0:00:17]} cxb3 $1 {[%emt 0:01:12]} 15. axb3 {[%emt 0:00:02]} Rfb8 {[%emt 0:12:15]} 16. Nbd2 {[%emt 0:00:44]} Rb5 {[%emt 0:00:04]} 17. Qc7 {[%emt 0:03:19]} Ne8 {[%emt 0:01:08]} 18. Qxd6 {[%emt 0:04:54]} Nxd6 {[%emt 0:00:04]} 19. Ne5 {[%emt 0:00:13]} Be8 {[%emt 0:01:53]} 20. Nd3 {[%emt 0:00:55]} a5 {[%emt 0:05:45]} 21. f3 {[%emt 0:07:22]} Rb7 {[%emt 0:01:07]} 22. Ra2 {[%emt 0:01:32]} Rba7 {[%emt 0:01:18]} 23. Kf2 {[%emt 0:03:26]} a4 {[%emt 0:03:12]} 24. Rca1 {[%emt 0:00:06]} Nc8 {[%emt 0:00:03]} 25. h4 {[%emt 0:00:52]} Kf8 {[%emt 0:00:25]} 26. g4 {[%emt 0:00:46]} axb3 {[%emt 0:00:14]} 27. Rxa7 {[%emt 0:00:07]} Rxa7 {[%emt 0:00:02]} 28. Rxa7 {[%emt 0:00:06]} Nxa7 {[%emt 0:00:03]} 29. Nxb3 $11 {[%emt 0:00:07][%mdl 4096] Endgame KBN-KNN} Nb5 {[%emt 0:00:13]} 30. Nbc5 {[%emt 0:00:07]} Ke7 {[%emt 0:00:04]} 31. Nf4 {[%emt 0:00:24]} h6 {[%emt 0:01:24]} 32. g5 {[%emt 0:00:10]} hxg5 {[%emt 0:00:04]} 33. hxg5 {[%emt 0:00:05]} Nc7 {[%emt 0:00:26]} 34. Nh5 {[%emt 0:00:20]} Kf8 {[%emt 0:00:29]} 35. Nf4 {[%emt 0:00:05]} Ke7 {[%emt 0:00:03]} 36. Nh5 {[%emt 0:00:15]} Kf8 {[%emt 0:00:37]} 37. Nf4 {[%emt 0:00:40] An even fight not without its subleties.   Weighted Error Value: White=0.02 (flawless) /Black=0.01 (flawless)} 1/2-1/2

[Event "85th Tata Steel Masters 2023"]
[Site "Wijk aan Zee"]
[Date "2023.01.16"]
[Round "3.2"]
[White "Gukesh D"]
[Black "Abdusattorov, Nodirbek"]
[Result "1/2-1/2"]
[ECO "E11"]
[WhiteElo "2725"]
[BlackElo "2713"]
[Annotator "TA"]
[PlyCount "87"]
[EventDate "2023.01.10"]
[EventType "tourn"]
[EventCountry "NED"]
[SourceTitle "playchess.com"]
[Source "ChessBase"]
[SourceQuality "1"]
[TimeControl "40/6000+30:30/3000+30:900+30"]

{[%evp 17,87,18,20,22,15,18,27,24,29,29,26,21,25,32,29,18,23,9,18,16,8,13,14,6,9,6,5,10,12,0,0,0,0,0,0,0,0,0,0,0,0,0,0,0,0,0,0,0,0,0,0,0,0,0,0,0,0,0,0,0,0,0,0,0,0,0,0,0,0,0,0,0]} 1. d4 {[%emt 0:00:46]} Nf6 {[%emt 0:00:21]} 2. c4 {[%emt 0:00:34]} e6 {[%emt 0:00:20]} 3. Nf3 {[%emt 0:00:54]} Bb4+ {[%emt 0:00:28]} 4. Bd2 {[%emt 0:00:22]} Bxd2+ {[%emt 0:00:21]} 5. Qxd2 {[%emt 0:01:41]} d5 {[%emt 0:00:20]} 6. g3 {[%emt 0:02:17]} O-O {[%emt 0:00:20]} 7. Bg2 {[%emt 0:00:05]} c6 {[%emt 0:00:28]} 8. O-O {[%emt 0:02:27]} Nbd7 {[%emt 0:00:29]} 9. Rc1 {[%emt 0:01:19]} Qe7 {[%emt 0:00:45]} 10. Qe3 {[%emt 0:01:04] 10.Qe3 was played by the boomers. E11: Bogo-Indian.} b6 {[%emt 0:20:48] [#]} 11. Ne5 $146 {[%emt 0:17:30]} ({Predecessor:} 11. Nbd2 Bb7 12. cxd5 cxd5 13. Rc7 Ba6 14. Ne5 Rfc8 15. Rac1 Rxc7 16. Rxc7 Qd8 17. Rc1 Rc8 18. Nc6 Qf8 19. Nf3 Nb8 20. Nxb8 Rxc1+ 21. Qxc1 Qxb8 {½-½ Nguyen,A (2444)-Maghsoodloo,P (2590) Abu Dhabi op 24th 2017 (2)}) 11... Bb7 {[%emt 0:04:25]} 12. cxd5 {[%emt 0:01:49] White has an edge.} Nxd5 {[%emt 0:19:30]} 13. Qa3 {[%emt 0:01:22] [#] aiming for Qxe7.} Nxe5 {[%emt 0:02:03]} 14. Qxe7 {[%emt 0:00:50]} Nxe7 {[%emt 0:00:11]} 15. dxe5 {[%emt 0:00:04]} Rad8 {[%emt 0:04:58]} 16. Nc3 {[%emt 0:07:35]} Ba6 {[%emt 0:00:26]} 17. Kf1 {[%emt 0:24:37]} Rd2 {[%emt 0:03:00] The position is equal.} 18. b3 {[%emt 0:03:52]} Rfd8 {[%emt 0:04:41]} 19. Ke1 {[%emt 0:02:13]} g5 {[%emt 0:03:07]} 20. Be4 {[%emt 0:02:37]} Kg7 {[%emt 0:04:41]} 21. Rd1 {[%emt 0:00:49]} Rxd1+ {[%emt 0:02:17]} 22. Rxd1 {[%emt 0:00:05]} Rxd1+ {[%emt 0:00:48]} 23. Nxd1 {[%emt 0:01:36]} Ng6 {[%emt 0:05:29]} 24. Bxg6 {[%emt 0:00:12]} Kxg6 $11 {[%emt 0:00:05][%mdl 4096] Endgame KB-KN} 25. Ne3 {[%emt 0:03:38]} c5 {[%emt 0:01:47]} 26. Kd2 {[%emt 0:01:29]} h5 {[%emt 0:05:04]} 27. f3 {[%emt 0:07:27]} Bb5 {[%emt 0:03:29]} 28. h3 {[%emt 0:05:41]} Ba6 {[%emt 0:03:17]} 29. g4 {[%emt 0:02:11]} h4 {[%emt 0:02:55]} 30. Nc4 {[%emt 0:01:12]} Bxc4 {[%emt 0:03:05]} 31. bxc4 {[%emt 0:00:05] KP-KP} Kg7 {[%emt 0:00:06]} 32. a4 {[%emt 0:07:34]} Kf8 {[%emt 0:01:55]} 33. a5 {[%emt 0:00:14]} Ke7 {[%emt 0:00:34]} (33... bxa5 $2 34. Kc3 $16) 34. axb6 {[%emt 0:01:20]} axb6 {[%emt 0:00:07] [#] ...Kd7 would be deadly.} 35. Kc3 {[%emt 0:00:03]} Kd7 {[%emt 0:01:26] And now ...Kc6 would win.} 36. Kb3 $1 {[%emt 0:00:06]} Kc7 {[%emt 0:01:16]} 37. Ka4 {[%emt 0:00:59]} Kc6 {[%emt 0:00:08]} 38. e3 $1 {[%emt 0:00:08]} Kc7 {[%emt 0:00:45]} 39. Kb5 {[%emt 0:00:36]} Kb7 {[%emt 0:00:11]} 40. f4 {[%emt 0:00:19]} Kc7 $1 {[%emt 0:00:36]} 41. Ka6 {[%emt 0:51:29]} (41. fxg5 $5 Kb7 $8 42. e4 $11) 41... Kc6 $1 {[%emt 0:50:20]} 42. fxg5 {[%emt 0:00:28]} Kc7 {[%emt 0:00:08]} 43. Ka7 {[%emt 0:00:28]} (43. Kb5 $5) 43... Kc6 {[%emt 0:00:06] ( -> ...b5)} 44. Ka6 {[%emt 0:00:12] An interesting draw.   Weighted Error Value: White=0.01 (flawless) /Black=0.00 (flawless)} 1/2-1/2

[Event "85th Tata Steel Masters 2023"]
[Site "Wijk aan Zee"]
[Date "2023.01.16"]
[Round "3.3"]
[White "Maghsoodloo, Parham"]
[Black "Giri, Anish"]
[Result "1/2-1/2"]
[ECO "C54"]
[WhiteElo "2719"]
[BlackElo "2764"]
[Annotator "TA"]
[PlyCount "60"]
[EventDate "2023.01.10"]
[EventType "tourn"]
[EventCountry "NED"]
[SourceTitle "playchess.com"]
[Source "ChessBase"]
[SourceQuality "1"]
[TimeControl "40/6000+30:30/3000+30:900+30"]

{[%evp 10,60,12,9,19,11,12,9,9,9,4,12,13,13,0,12,12,0,17,14,8,8,10,7,7,0,6,0,0,0,0,0,0,0,4,0,12,0,0,0,0,0,12,0,0,0,20,-5,0,-3,-12,0,0]} 1. e4 {[%emt 0:00:14]} e5 {[%emt 0:00:07]} 2. Nf3 {[%emt 0:00:05]} Nc6 {[%emt 0:00:04]} 3. Bc4 {[%emt 0:00:05]} Nf6 {[%emt 0:00:14]} 4. d3 {[%emt 0:00:07]} Bc5 {[%emt 0:00:09]} 5. O-O {[%emt 0:00:07]} d6 {[%emt 0:01:52]} 6. c3 {[%emt 0:01:10] The position is equal.} a5 {[%emt 0:00:24] C54: Giuoco Piano: 4 c3 Nf6, main lines with 5 d4 and 5 d3.} 7. Re1 {[%emt 0:03:31]} O-O {[%emt 0:00:27]} 8. h3 {[%emt 0:01:25]} Be6 {[%emt 0:00:28]} 9. Bb5 {[%emt 0:03:08]} Ba7 {[%emt 0:00:40]} 10. d4 {[%emt 0:07:42] d5 would be deadly.} Bd7 {[%emt 0:01:26][%cal Oc6d4]} 11. Bg5 {[%emt 0:08:47]} h6 {[%emt 0:03:50] [#]} 12. Bh4 $146 {[%emt 0:01:01]} ({Predecessor:} 12. Bxf6 Qxf6 13. dxe5 Qg6 14. Bxc6 Bxh3 15. Nh4 Qg3 16. Qf3 Qxh4 17. gxh3 bxc6 18. exd6 cxd6 {½-½ Acs,P (2565)-Kantor,G (2527) HUN-ch Rapid 2021 (13)}) 12... g5 {[%emt 0:08:19]} 13. Bg3 {[%emt 0:12:18]} Re8 {[%emt 0:01:53]} 14. dxe5 {[%emt 0:02:35]} Nxe5 {[%emt 0:01:25]} 15. Bxd7 {[%emt 0:00:22]} Nxf3+ {[%emt 0:11:33]} 16. Qxf3 {[%emt 0:00:07]} Nxd7 {[%emt 0:00:03]} 17. Na3 {[%emt 0:06:28][%cal Oe4e5]} Qf6 {[%emt 0:15:10]} 18. Qxf6 {[%emt 0:02:41]} Nxf6 {[%emt 0:00:06]} 19. Nb5 {[%emt 0:00:45]} Bb6 {[%emt 0:00:51]} 20. e5 {[%emt 0:00:11]} Nh5 {[%emt 0:01:41][%cal Bf6h5,Bh5g7,Bg7f5][%mdl 32]} 21. Bh2 {[%emt 0:02:10]} d5 {[%emt 0:03:23]} 22. Rad1 {[%emt 0:02:24]} Rad8 {[%emt 0:06:40]} 23. Kf1 {[%emt 0:11:40]} Ng7 {[%emt 0:03:35]} 24. f4 {[%emt 0:07:42]} gxf4 {[%emt 0:07:23]} 25. Bxf4 {[%emt 0:00:16]} Kh7 {[%emt 0:00:22]} 26. Be3 {[%emt 0:02:04]} Bxe3 {[%emt 0:03:43]} 27. Rxe3 {[%emt 0:00:06]} Nf5 {[%emt 0:03:02]} (27... c6 $5 {[%cal Rc6b5]} 28. Nd4 c5 $11) 28. Ree1 {[%emt 0:00:07]} (28. Rf3 $5 {[%cal Rf3f5]} Rxe5 29. Re1 $11) 28... c6 {[%emt 0:00:19]} 29. Nd4 {[%emt 0:00:17]} Ng3+ {[%emt 0:03:06]} 30. Kg1 {[%emt 0:00:31]} Ne4 {[%emt 0:00:15] An uneventful encounter.   Weighted Error Value: White=0.04 (flawless) /Black=0.03 (flawless)} 1/2-1/2

[Event "85th Tata Steel Masters 2023"]
[Site "Wijk aan Zee"]
[Date "2023.01.16"]
[Round "3.4"]
[White "Caruana, Fabiano"]
[Black "Van Foreest, Jorden"]
[Result "1-0"]
[ECO "C42"]
[WhiteElo "2766"]
[BlackElo "2681"]
[Annotator "TA"]
[PlyCount "91"]
[EventDate "2023.01.10"]
[EventType "tourn"]
[EventCountry "NED"]
[SourceTitle "playchess.com"]
[Source "ChessBase"]
[SourceQuality "1"]
[TimeControl "40/6000+30:30/3000+30:900+30"]

{[%evp 10,91,37,32,51,39,51,33,21,11,4,0,0,0,0,0,-9,0,0,0,25,0,25,31,43,34,97,35,85,33,88,79,82,78,60,53,63,52,82,77,94,70,205,201,194,198,208,141,139,138,147,154,163,148,237,213,260,250,329,335,323,308,326,333,628,630,565,591,584,549,2433,2463,1970,1893,2794,2770,4108,2721,2045,1601,2360,2284,1847,1670]} 1. e4 {[%emt 0:00:04]} e5 {[%emt 0:00:18]} 2. Nf3 {[%emt 0:00:05]} Nf6 {[%emt 0:00:09]} 3. Nxe5 {[%emt 0:00:34]} d6 {[%emt 0:00:08]} 4. Nf3 {[%emt 0:00:08]} Nxe4 {[%emt 0:00:09]} 5. d4 {[%emt 0:00:05]} d5 {[%emt 0:00:15]} 6. Bd3 {[%emt 0:00:06]} Be6 {[%emt 0:00:43] C42: Petroff Defence: 3 Nxe5 and unusual White 3rd moves.} 7. O-O {[%emt 0:01:04][%cal Oc2c4]} f5 {[%emt 0:00:09]} 8. Qe2 {[%emt 0:17:50][%cal Of3g5] Ng5! would be deadly.} Be7 {[%emt 0:00:48] [#] Prevents Ng5. White is slightly better.} 9. Ne5 $146 {[%emt 0:07:17]} ({Predecessor:} 9. c4 c6 10. Nc3 O-O 11. Re1 Nd7 12. Qc2 Bf7 13. cxd5 cxd5 14. Qb3 Bd6 15. Qxb7 {½-½ Klauner,T (2449)-Niewiadomski,W (2450) ICCF izt 04/bd06 email 2006 [6]}) 9... Nd7 {[%emt 0:00:33]} 10. Nxd7 {[%emt 0:02:01]} Qxd7 {[%emt 0:00:56]} (10... Kxd7 11. c4 $16) 11. f3 {[%emt 0:02:33]} O-O {[%emt 0:04:08]} 12. Bf4 {[%emt 0:05:39]} Bf6 {[%emt 0:27:21]} 13. c3 {[%emt 0:00:45]} g5 {[%emt 0:00:18]} 14. Be5 {[%emt 0:06:58]} Nd6 {[%emt 0:09:27]} 15. f4 {[%emt 0:02:11]} g4 {[%emt 0:04:14]} 16. Na3 {[%emt 0:03:38] Strongly threatening Bxd6.} Rae8 {[%emt 0:00:59]} 17. Nc2 {[%emt 0:02:40]} Bd8 {[%emt 0:09:26]} (17... h5 $14) 18. Rad1 {[%emt 0:06:15]} (18. Ne3 $16) 18... c6 {[%emt 0:00:53] [#]} (18... h5 $14) 19. Ne3 {[%emt 0:03:43]} (19. h3 $1 $16) 19... b5 {[%emt 0:00:28] [#]} ({Black should play} 19... Re7 $14) 20. a4 $1 {[%emt 0:01:57] White is more active.} bxa4 {[%emt 0:04:00][%cal Oa4a3]} 21. Qc2 {[%emt 0:05:54][%cal Oe5d6]} h5 {[%emt 0:00:24]} 22. Kh1 {[%emt 0:03:31]} a3 {[%emt 0:09:49]} 23. bxa3 {[%emt 0:00:08]} Nc4 {[%emt 0:00:21]} 24. Bxc4 {[%emt 0:09:48]} dxc4 {[%emt 0:00:08]} 25. Kg1 {[%emt 0:00:29]} h4 {[%emt 0:01:54] [#] This move loses the game for Black.} (25... Bd5 $14) 26. Nxg4 $1 $18 {[%emt 0:03:27][%mdl 512]} Bd5 {[%emt 0:00:42]} 27. Ne3 {[%emt 0:00:34]} Be4 {[%emt 0:00:56]} 28. Qe2 $40 {[%emt 0:05:41][%mdl 128] White goes for the king.} Bd3 {[%emt 0:04:58]} 29. Rxd3 {[%emt 0:00:19]} cxd3 {[%emt 0:00:04]} 30. Qxd3 {[%emt 0:00:06]} Re6 {[%emt 0:00:25]} 31. Rb1 {[%emt 0:04:19]} (31. Nxf5 $2 Qh7 $19) 31... Rg6 {[%emt 0:01:55]} (31... Ree8 $16 32. Qc4+ Qe6 33. Qxe6+ Rxe6) 32. Rb8 {[%emt 0:00:58]} Qf7 {[%emt 0:00:56]} 33. c4 {[%emt 0:03:18]} c5 {[%emt 0:10:46]} 34. dxc5 {[%emt 0:06:51]} Be7 {[%emt 0:00:38] Hoping for ...Rxb8.} 35. Rb7 {[%emt 0:00:44] aiming for Rc7.} (35. Nxf5 Bxc5+ 36. Kf1 Rxb8 37. Bxb8 h3 $11) (35. Qxf5 Qxf5 36. Nxf5 Bxc5+ 37. Kf1 Rxb8 38. Bxb8 Ra6 $15) 35... Qe6 {[%emt 0:05:03]} 36. Rc7 {[%emt 0:03:13] Threatens to win with Qd5.} (36. Rxa7 Bxc5 37. Rc7 Bb6 $17) 36... Rc8 $2 {[%emt 0:03:26]} (36... Rf7 37. c6 (37. Rxa7 Bxc5 38. Rxf7 Kxf7 $11) 37... h3) 37. Rxc8+ {[%emt 0:01:28] White is clearly winning.} (37. Rxa7 Bxc5 38. Ra5 Bxe3+ 39. Qxe3 Qxc4 $19) (37. Nxf5 $2 Rxc7 38. Kf1 Rb7 $19) (37. Rxe7 Qxe7 38. Qxf5 Qe6 $16) 37... Qxc8 {[%emt 0:00:04]} 38. Qd5+ {[%emt 0:01:11]} ({Worse is} 38. Qxf5 Qxf5 39. Nxf5 Bxc5+ 40. Kf1 Ra6 $11) 38... Kf8 {[%emt 0:00:24]} 39. Bd6 {[%emt 0:01:38]} Qe6 {[%emt 0:03:42]} 40. Qxe6 {[%emt 0:00:28]} ({Not} 40. Qxf5+ Kg8 41. Qd3 Bxd6 $18) 40... Rxe6 {[%emt 0:00:06]} 41. Nxf5 {[%emt 0:50:06]} Bxd6 {[%emt 0:50:04]} 42. cxd6 {[%emt 0:00:00] KR-KN} Re1+ {[%emt 0:00:00]} 43. Kf2 {[%emt 0:00:00]} Rc1 {[%emt 0:00:00]} 44. Ke3 {[%emt 0:00:00]} Ke8 {[%emt 0:00:00]} 45. Kd4 {[%emt 0:00:00]} Rc2 {[%emt 0:00:00]} 46. c5 {[%emt 0:00:00] Artfully played by Caruana.   Weighted Error Value: White=0.08 (flawless) /Black=0.38} 1-0